bitfinex/quotes_BTCUSD_20250206
["timestamp","ask_amount","ask_price","bid_price","bid_amount"]
[1738802874047,0.00668134,96813.0,96812.0,0.26663568]
[1738802874225,0.00668134,96813.0,96812.0,0.26763568]
[1738802876588,0.00668134,96813.0,96812.0,0.26663568]
[1738802876932,0.01500134,96813.0,96812.0,0.26663568]
[1738802879527,0.01500134,96813.0,96812.0,0.33668421]
[1738802880701,0.01500134,96813.0,96812.0,0.26663568]
[1738802882507,0.00668134,96813.0,96812.0,0.46213568]
[1738802886171,0.00668134,96813.0,96812.0,0.46313568]
[1738802886377,0.00668134,96813.0,96812.0,0.46213568]
[1738802886834,0.00668134,96813.0,96812.0,0.46313568]
[1738802887421,0.0002245,96813.0,96812.0,0.46313568]
[1738802887968,0.0002245,96813.0,96812.0,0.78343568]
[1738802888371,0.0002245,96813.0,96812.0,0.88593933]
[1738802889290,0.00832,96820.0,96813.0,0.173]
[1738802889416,0.00832,96820.0,96819.0,0.408228]
[1738802890682,0.00832,96820.0,96819.0,0.728528]
[1738802891067,0.00832,96820.0,96819.0,0.578528]
[1738802892120,0.00832,96820.0,96819.0,0.63810876]
[1738802892646,0.00832,96820.0,96819.0,0.578528]
[1738802893229,0.0085445,96820.0,96819.0,0.579528]
[1738802893597,0.0085445,96820.0,96819.0,0.59979152]
[1738802894043,0.0085445,96820.0,96819.0,0.59879152]
[1738802894218,0.0085445,96820.0,96819.0,0.59979152]
[1738802894785,0.0085445,96820.0,96819.0,0.27949152]
[1738802894990,0.0085445,96820.0,96819.0,0.19919152]
[1738802895191,0.0085445,96820.0,96819.0,0.19819152]
[1738802896216,0.11104815,96820.0,96819.0,0.19819152]
[1738802896555,0.11750466,96820.0,96819.0,0.20019152]
[1738802896761,0.11750466,96820.0,96819.0,0.19819152]
[1738802897184,0.11750466,96820.0,96819.0,0.19919152]
[1738802897386,0.11750466,96820.0,96819.0,0.19819152]
[1738802897562,0.11750466,96820.0,96819.0,0.19919152]
[1738802897947,0.11750466,96820.0,96819.0,0.19819152]
[1738802898174,0.11750466,96820.0,96819.0,0.19919152]
[1738802899403,0.11750466,96820.0,96819.0,0.19819152]
[1738802899813,0.11750466,96820.0,96819.0,0.19919152]
[1738802900021,0.11750466,96820.0,96819.0,0.19819152]
[1738802900225,0.11104815,96820.0,96819.0,0.19819152]
[1738802900418,0.11104815,96820.0,96819.0,0.19919152]
[1738802902232,0.11104815,96820.0,96819.0,0.34919152]
[1738802903113,0.11750464,96820.0,96819.0,0.34919152]
[1738802903917,0.1292551,96820.0,96819.0,0.305928]
[1738802904343,0.11750464,96820.0,96819.0,0.305928]
[1738802905976,0.11750464,96820.0,96819.0,0.151]
[1738802906195,0.11750464,96820.0,96819.0,0.305928]
[1738802906399,0.11750464,96820.0,96819.0,0.151]
[1738802906575,0.11750464,96820.0,96819.0,0.15]
[1738802906780,0.11750464,96820.0,96819.0,0.304928]
[1738802906998,0.11750464,96820.0,96819.0,0.15]
[1738802907208,0.11750464,96820.0,96819.0,0.304928]
[1738802908117,0.11750464,96820.0,96819.0,0.305928]
[1738802908319,0.11750464,96820.0,96819.0,0.304928]
[1738802908722,0.12250464,96820.0,96819.0,0.305928]
[1738802909303,0.12250464,96820.0,96819.0,0.151]
[1738802909504,0.3366371,96820.0,96819.0,0.151]
[1738802909709,0.5328371,96820.0,96819.0,0.151]
[1738802910534,0.5278371,96820.0,96819.0,0.15]
[1738802910869,0.5328371,96820.0,96819.0,0.151]
[1738802911193,0.53839104,96820.0,96819.0,0.15]
[1738802911691,0.5368371,96820.0,96819.0,0.151]
[1738802916443,0.8619371,96820.0,96819.0,0.151]
[1738802916643,0.87730097,96820.0,96819.0,0.151]
[1738802916864,0.84110097,96820.0,96819.0,0.0582964]
[1738802917115,2.36410097,96820.0,96819.0,0.0582964]
[1738802917548,2.35510097,96820.0,96819.0,0.0572964]
[1738802917737,2.36410097,96820.0,96819.0,0.0572964]
[1738802917945,3.06410097,96820.0,96819.0,0.0572964]
[1738802918137,3.05510097,96820.0,96819.0,0.0572964]
[1738802918351,3.06410097,96820.0,96819.0,0.0572964]
[1738802921766,2.36410097,96820.0,96819.0,0.0572964]
[1738802924869,3.58052097,96820.0,96819.0,0.0572964]
[1738802925071,3.57220097,96820.0,96819.0,0.0572964]
[1738802925280,2.34920097,96820.0,96819.0,0.0572964]
[1738802925483,2.43920097,96820.0,96819.0,0.0572964]
[1738802925685,2.45752097,96820.0,96819.0,0.0572964]
[1738802926190,2.44752097,96820.0,96819.0,0.0572964]
[1738802926394,2.14752097,96820.0,96819.0,0.0572964]
[1738802926621,2.44752097,96820.0,96819.0,0.0572964]
[1738802926786,1.74752097,96820.0,96819.0,0.0572964]
[1738802926996,1.75752097,96820.0,96819.0,0.0572964]
[1738802927555,1.74752097,96820.0,96819.0,0.0572964]
[1738802927977,1.75752097,96820.0,96819.0,0.0572964]
[1738802928132,1.86632097,96820.0,96819.0,0.0572964]
[1738802928333,2.44752097,96820.0,96819.0,0.0572964]
[1738802928746,2.43752097,96820.0,96819.0,0.0572964]
[1738802929525,3.63752097,96820.0,96819.0,0.0572964]
[1738802929709,3.93752097,96820.0,96819.0,0.0572964]
[1738802930057,3.64752097,96820.0,96819.0,0.0572964]
[1738802930273,3.95689148,96820.0,96819.0,0.0572964]
[1738802930459,4.06601148,96820.0,96819.0,0.0572964]
[1738802930651,4.07601148,96820.0,96819.0,0.0572964]
[1738802931254,4.08601148,96820.0,96819.0,0.0574032]
[1738802931715,3.77601148,96820.0,96819.0,0.0574032]
[1738802931891,4.07601148,96820.0,96819.0,0.0574032]
[1738802932317,4.08601148,96820.0,96819.0,0.0574032]
[1738802932494,4.06601148,96820.0,96819.0,0.0574032]
[1738802932678,4.03971148,96820.0,96819.0,0.0574032]
[1738802932882,4.04971148,96820.0,96819.0,0.0574032]
[1738802933081,2.53971148,96820.0,96819.0,0.0574032]
[1738802933924,2.58107048,96820.0,96819.0,0.0574032]
[1738802934123,2.59107048,96820.0,96819.0,0.0574032]
[1738802934321,1.89107048,96820.0,96819.0,0.0574032]
[1738802934546,1.87169997,96820.0,96819.0,0.0574032]
[1738802936648,1.86337997,96820.0,96819.0,0.0574032]
[1738802936864,1.87169997,96820.0,96819.0,0.0574032]
[1738802937278,3.37169997,96820.0,96819.0,0.0574032]
[1738802938330,1.47911451,96820.0,96819.0,0.0574032]
[1738802938590,1.48743451,96820.0,96819.0,0.0574032]
[1738802939651,2.98743451,96820.0,96819.0,0.0574032]
[1738802940696,2.99743451,96820.0,96819.0,0.0574032]
[1738802940906,3.70743451,96820.0,96819.0,0.0574032]
[1738802941363,3.72680502,96820.0,96819.0,0.0367462]
[1738802941645,0.724936,96814.0,96813.0,0.0001069]
[1738802941850,1.34385965,96814.0,96813.0,0.0001069]
[1738802942055,2.04385965,96814.0,96813.0,0.0001069]
[1738802943063,2.05285965,96814.0,96813.0,0.0001069]
[1738802944008,2.05931614,96814.0,96813.0,0.0001069]
[1738802944239,2.37541614,96814.0,96813.0,0.0001069]
[1738802944643,2.38441614,96814.0,96813.0,0.0001069]
[1738802946036,2.37541614,96814.0,96813.0,0.0001069]
[1738802946242,1.97441614,96814.0,96813.0,0.0001069]
[1738802946415,2.27441614,96814.0,96813.0,0.0001069]
[1738802946999,2.07273614,96814.0,96813.0,0.0001069]
[1738802947221,1.37273614,96814.0,96813.0,0.0001069]
[1738802948075,1.38273614,96814.0,96813.0,0.0001069]
[1738802949380,1.37273614,96814.0,96813.0,0.0001069]
[1738802949555,0.154947,96807.0,96806.0,0.0465]
[1738802949779,0.92387065,96807.0,96806.0,0.0465]
[1738802950386,1.24897065,96807.0,96806.0,0.0465]
[1738802950924,1.25797065,96807.0,96806.0,0.0465]
[1738802951188,0.15,96802.0,96795.0,0.0494069]
[1738802951494,0.40746865,96796.0,96795.0,0.0494069]
[1738802951697,0.92388865,96796.0,96795.0,0.0494069]
[1738802952126,0.92388865,96796.0,96795.0,0.0001069]
[1738802952556,0.93034514,96796.0,96795.0,0.0001069]
[1738802952762,1.56081224,96796.0,96795.0,0.0001069]
[1738802952958,1.58081224,96796.0,96795.0,0.0001069]
[1738802953163,1.58981224,96796.0,96795.0,0.0001069]
[1738802953336,1.58081224,96796.0,96795.0,0.0001069]
[1738802953785,1.58981224,96796.0,96795.0,0.0001069]
[1738802953987,1.58081224,96796.0,96795.0,0.0001069]
[1738802954203,1.60018275,96796.0,96795.0,0.0001069]
[1738802954335,0.305,96774.0,96773.0,0.0815]
[1738802954524,0.41582365,96774.0,96773.0,0.0815]
[1738802954924,0.93224365,96774.0,96773.0,0.0815]
[1738802955941,0.94770014,96774.0,96773.0,0.0815]
[1738802958813,0.93870014,96774.0,96773.0,0.0815]
[1738802959014,0.94770014,96774.0,96773.0,0.0815]
[1738802959217,0.93870014,96774.0,96773.0,0.0815]
[1738802959764,0.94770014,96774.0,96773.0,0.0815]
[1738802961018,0.93938014,96774.0,96773.0,0.0815]
[1738802961220,0.94770014,96774.0,96773.0,0.0815]
[1738802964840,0.93870014,96774.0,96773.0,0.0815]
[1738802965219,0.94770014,96774.0,96773.0,0.0815]
[1738802965466,0.93870014,96774.0,96773.0,0.0815]
[1738802965869,0.94770014,96774.0,96773.0,0.0815]
[1738802967956,0.94770014,96774.0,96773.0,0.0816069]
[1738802969158,0.93870014,96774.0,96773.0,0.0816069]
[1738802969360,0.94770014,96774.0,96773.0,0.0816069]
[1738802971868,0.79770014,96774.0,96773.0,0.0816069]
[1738802983467,0.64270014,96774.0,96773.0,0.0816069]
[1738802983659,0.79770014,96774.0,96773.0,0.0816069]
[1738802984785,0.78870014,96774.0,96773.0,0.0816069]
[1738802985199,0.79770014,96774.0,96773.0,0.0816069]
[1738802986333,0.79770014,96774.0,96773.0,0.0001069]
[1738802987273,0.64270014,96774.0,96773.0,0.0001069]
[1738802987479,0.79770014,96774.0,96773.0,0.0001069]
[1738802987675,0.64270014,96774.0,96773.0,0.0001069]
[1738802987876,0.64270014,96774.0,96773.0,0.0778069]
[1738802988082,0.63438014,96774.0,96773.0,0.0778069]
[1738802988234,0.64270014,96774.0,96773.0,0.0778069]
[1738802988436,0.63370014,96774.0,96773.0,0.0778069]
[1738802988652,0.64270014,96774.0,96773.0,0.0778069]
[1738802989249,0.63438014,96774.0,96773.0,0.2328079]
[1738802989451,0.63438014,96774.0,96773.0,0.3040079]
[1738802989452,0.64270014,96774.0,96773.0,0.3040079]
[1738802989677,0.54019649,96774.0,96773.0,0.3040079]
[1738802991546,0.53119649,96774.0,96773.0,0.3040079]
[1738802991994,0.53619649,96774.0,96773.0,0.3040079]
[1738802992192,0.53119649,96774.0,96773.0,0.3040079]
[1738802992325,0.53519649,96774.0,96773.0,0.3040079]
[1738802992698,0.53119649,96774.0,96773.0,0.3040079]
[1738802993106,0.53519649,96774.0,96773.0,0.3040079]
[1738802993834,0.53519649,96774.0,96773.0,0.32474101]
[1738802994061,0.70050376,96774.0,96773.0,0.1260069]
[1738802994893,0.69650376,96774.0,96773.0,0.1260069]
[1738802995022,0.70050376,96774.0,96773.0,0.1260069]
[1738802995229,0.69650376,96774.0,96773.0,0.1260069]
[1738802995629,0.70050376,96774.0,96773.0,0.1260069]
[1738802997147,0.63770014,96774.0,96773.0,0.1260069]
[1738802998496,0.63770014,96774.0,96773.0,0.2810079]
[1738802998698,0.53515649,96774.0,96773.0,0.3040079]
[1738802998843,0.53115649,96774.0,96773.0,0.3040079]
[1738802999246,0.53515649,96774.0,96773.0,0.3040079]
[1738803000676,0.53115649,96774.0,96773.0,0.3040079]
[1738803001056,0.53515649,96774.0,96773.0,0.3040079]
[1738803001208,0.53115649,96774.0,96773.0,0.3040079]
[1738803001611,0.53415649,96774.0,96773.0,0.3040079]
[1738803003638,0.69935976,96774.0,96773.0,0.2810079]
[1738803004293,0.69635976,96774.0,96773.0,0.2810079]
[1738803004720,0.69935976,96774.0,96773.0,0.2810079]
[1738803005099,0.63666014,96774.0,96773.0,0.2810079]
[1738803007096,0.63366014,96774.0,96773.0,0.2810079]
[1738803007258,0.63666014,96774.0,96773.0,0.2810079]
[1738803008103,0.63366014,96774.0,96773.0,0.2810079]
[1738803008312,0.63666014,96774.0,96773.0,0.2810079]
[1738803008871,0.53415649,96774.0,96773.0,0.3040079]
[1738803009948,0.53115649,96774.0,96773.0,0.3040079]
[1738803010327,0.53415649,96774.0,96773.0,0.3040079]
[1738803011174,0.52587649,96774.0,96773.0,0.8471231]
[1738803011380,0.39777649,96774.0,96773.0,0.8471231]
[1738803011875,0.00945649,96774.0,96773.0,0.8471231]
[1738803012834,0.00945649,96774.0,96773.0,0.7743079]
[1738803013074,0.00945649,96774.0,96773.0,0.6243079]
[1738803013241,0.00645649,96774.0,96773.0,0.6243079]
[1738803016417,0.00645649,96774.0,96773.0,0.7743079]
[1738803017149,4.655e-05,96796.0,96790.0,0.154974]
[1738803017303,0.00828,96793.0,96791.0,0.03953031]
[1738803017513,0.00828,96793.0,96792.0,0.353227]
[1738803018689,4.655e-05,96796.0,96794.0,0.256068]
[1738803018893,4.655e-05,96796.0,96794.0,0.771868]
[1738803019173,4.655e-05,96796.0,96794.0,0.87437165]
[1738803019369,4.655e-05,96796.0,96794.0,0.771868]
[1738803019582,4.655e-05,96796.0,96794.0,0.78240875]
[1738803023422,4.655e-05,96796.0,96794.0,0.78440875]
[1738803023786,4.655e-05,96796.0,96794.0,0.78240875]
[1738803024596,4.655e-05,96796.0,96794.0,0.78440875]
[1738803024792,4.655e-05,96796.0,96794.0,0.8869124]
[1738803026222,4.655e-05,96796.0,96794.0,0.8849124]
[1738803029784,4.655e-05,96796.0,96794.0,0.48580875]
[1738803029903,0.10272815,96795.0,96794.0,0.48580875]
[1738803030307,0.1091858,96795.0,96794.0,0.48580875]
[1738803030514,0.1091858,96795.0,96794.0,0.154968]
[1738803030920,0.1091858,96795.0,96787.0,0.01032256]
[1738803031286,0.10250365,96794.0,96793.0,0.154969]
[1738803031644,0.10250365,96794.0,96780.0,0.22599958]
[1738803031645,0.11342689,96794.0,96780.0,0.15402763]
[1738803031845,0.154969,96793.0,96785.0,0.154982]
[1738803032161,0.10250365,96792.0,96786.0,0.154981]
[1738803032361,0.00358541,96791.0,96786.0,0.154981]
[1738803032726,0.00358541,96791.0,96773.0,0.0001069]
[1738803032727,0.10250365,96787.0,96773.0,0.0001069]
[1738803032866,0.154988,96782.0,96774.0,0.154999]
[1738803033071,0.10250365,96781.0,96778.0,0.154992]
[1738803033294,0.10608012,96781.0,96778.0,0.154992]
[1738803033451,0.15285023,96781.0,96778.0,0.154992]
[1738803034088,0.10608012,96781.0,96780.0,0.15499]
[1738803034732,0.10250365,96781.0,96778.0,0.154992]
[1738803034942,0.10607657,96781.0,96777.0,0.20666]
[1738803035187,0.10607657,96781.0,96773.0,0.0001069]
[1738803035393,0.10250365,96777.0,96773.0,0.0001069]
[1738803035606,0.10250365,96774.0,96773.0,0.0001069]
[1738803036069,0.10562835,96774.0,96773.0,0.0001069]
[1738803036984,0.11462835,96774.0,96773.0,0.0001069]
[1738803037215,0.155004,96772.0,96767.0,0.0001069]
[1738803037416,0.11078365,96771.0,96767.0,0.0001069]
[1738803037722,0.11435394,96771.0,96767.0,0.0001069]
[1738803038150,0.11435394,96771.0,96767.0,0.1551179]
[1738803038269,0.11435394,96771.0,96767.0,0.0001069]
[1738803038699,0.00645765,96770.0,96767.0,0.0001069]
[1738803038901,0.10250365,96769.0,96767.0,0.0001069]
[1738803039134,0.10607355,96769.0,96767.0,0.0001069]
[1738803039568,0.10607355,96769.0,96768.0,0.155009]
[1738803040216,0.11507355,96769.0,96768.0,0.155009]
[1738803040427,0.1125312,96769.0,96768.0,0.155009]
[1738803040650,0.1125312,96769.0,96767.0,0.0001069]
[1738803040863,0.15839639,96769.0,96767.0,0.0001069]
[1738803041426,0.1215312,96769.0,96767.0,0.0001069]
[1738803042019,0.1125312,96769.0,96767.0,0.1551169]
[1738803042214,0.1215312,96769.0,96767.0,0.1551169]
[1738803042431,0.00645765,96768.0,96767.0,0.1551169]
[1738803042642,0.11253101,96768.0,96767.0,0.1551169]
[1738803043549,0.11253101,96768.0,96767.0,0.0001069]
[1738803043962,0.12153101,96768.0,96767.0,0.0001069]
[1738803044806,0.12153101,96768.0,96767.0,0.1551179]
[1738803044944,0.12981101,96768.0,96767.0,0.1551179]
[1738803045142,0.12081101,96768.0,96767.0,0.1551179]
[1738803045567,0.12981101,96768.0,96767.0,0.1551179]
[1738803045902,0.12081101,96768.0,96767.0,0.1551179]
[1738803046270,0.12981101,96768.0,96767.0,0.1551179]
[1738803046446,0.12081101,96768.0,96767.0,0.1551179]
[1738803046852,0.12981101,96768.0,96767.0,0.1551179]
[1738803047205,0.12081101,96768.0,96767.0,0.1551179]
[1738803047410,0.12081101,96768.0,96767.0,0.0001069]
[1738803047614,0.1205214,96768.0,96767.0,0.0001069]
[1738803048737,0.1295214,96768.0,96767.0,0.0001069]
[1738803049490,0.1205214,96768.0,96767.0,0.1551179]
[1738803049781,0.1295214,96768.0,96767.0,0.1551179]
[1738803050112,0.1205214,96768.0,96767.0,0.1551179]
[1738803050262,0.1295214,96768.0,96767.0,0.1551179]
[1738803051444,0.1205214,96768.0,96767.0,0.1551179]
[1738803051904,0.1295214,96768.0,96767.0,0.1551179]
[1738803052268,0.1205214,96768.0,96767.0,0.1551179]
[1738803052480,0.1295214,96768.0,96767.0,0.1551179]
[1738803052694,0.1205214,96768.0,96767.0,0.1551179]
[1738803052952,0.1122414,96768.0,96767.0,0.1551179]
[1738803053160,0.1295214,96768.0,96767.0,0.1551179]
[1738803053369,0.11695169,96768.0,96767.0,0.1551179]
[1738803053590,0.12049744,96768.0,96767.0,0.1551179]
[1738803053928,0.12049744,96768.0,96767.0,0.16567006]
[1738803055192,0.12949744,96768.0,96767.0,0.16567006]
[1738803055573,0.12049744,96768.0,96767.0,0.16567006]
[1738803055768,0.12749744,96768.0,96767.0,0.16567006]
[1738803056144,0.12049744,96768.0,96767.0,0.16567006]
[1738803056567,0.12549744,96768.0,96767.0,0.16567006]
[1738803056784,0.12049744,96768.0,96767.0,0.16567006]
[1738803057225,0.12549744,96768.0,96767.0,0.16567006]
[1738803057913,0.09283972,96782.0,96769.0,0.0763]
[1738803058112,0.09283972,96782.0,96781.0,0.254289]
[1738803058566,0.09283972,96782.0,96781.0,0.450189]
[1738803058715,0.09283972,96794.0,96793.0,0.154969]
[1738803058915,0.09283972,96794.0,96793.0,0.177969]
[1738803059121,0.10111972,96794.0,96793.0,0.177969]
[1738803059943,0.10311972,96794.0,96793.0,0.177969]
[1738803060354,0.20562337,96794.0,96793.0,0.154969]
[1738803061894,0.20362337,96794.0,96793.0,0.154969]
[1738803062099,0.20562337,96794.0,96793.0,0.154969]
[1738803062338,0.11278365,96794.0,96793.0,0.154969]
[1738803062574,0.11078365,96794.0,96793.0,0.154969]
[1738803062888,0.11078365,96794.0,96779.0,0.206654]
[1738803063096,0.10250365,96793.0,96791.0,0.154971]
[1738803064979,0.10450365,96793.0,96791.0,0.154971]
[1738803065343,0.10250365,96793.0,96791.0,0.154971]
[1738803065550,0.10450365,96793.0,96791.0,0.154971]
[1738803065787,0.0037736,96792.0,96791.0,0.154971]
[1738803065986,0.10627725,96792.0,96791.0,0.154971]
[1738803067085,0.10627725,96792.0,96782.0,0.01031491]
[1738803067284,0.10250365,96791.0,96774.0,0.0762]
[1738803067489,0.10628044,96791.0,96790.0,0.154974]
[1738803069116,0.10928044,96791.0,96790.0,0.154974]
[1738803069885,0.11228044,96791.0,96788.0,0.206635]
[1738803070097,0.11228044,96791.0,96790.0,0.154974]
[1738803070714,0.10850365,96791.0,96790.0,0.154974]
[1738803070920,0.10250365,96791.0,96790.0,0.154974]
[1738803071322,0.10550365,96791.0,96790.0,0.154974]
[1738803071969,0.10850365,96791.0,96790.0,0.154974]
[1738803072122,0.10250365,96791.0,96790.0,0.154974]
[1738803072535,0.10550365,96791.0,96790.0,0.154974]
[1738803072735,0.10250365,96791.0,96790.0,0.154974]
[1738803074579,0.10550365,96791.0,96790.0,0.154974]
[1738803074754,0.10250365,96791.0,96790.0,0.154974]
[1738803074963,0.0002245,96794.0,96793.0,0.154969]
[1738803075138,0.0002245,96794.0,96793.0,0.17900193]
[1738803076377,0.0002245,96794.0,96793.0,0.18100193]
[1738803078205,0.0002245,96794.0,96793.0,0.65130193]
[1738803078414,0.0002245,96794.0,96793.0,0.84425557]
[1738803079884,0.09283972,96802.0,96793.0,0.84425557]
[1738803079885,0.09234417,96802.0,96801.0,0.443057]
[1738803080093,0.09211968,96802.0,96801.0,0.466057]
[1738803080951,0.00828,96817.0,96804.0,0.081]
[1738803081181,0.00828,96817.0,96816.0,0.177933]
[1738803081364,0.0002245,96820.0,96818.0,0.0471]
[1738803081509,0.0002245,96820.0,96819.0,0.17896062]
[1738803082173,0.0002245,96820.0,96819.0,0.32896062]
[1738803082383,0.0002245,96820.0,96819.0,0.327928]
[1738803082588,0.0002245,96820.0,96819.0,0.43143165]
[1738803083388,0.0002245,96820.0,96819.0,0.75173165]
[1738803083597,0.0002245,96820.0,96819.0,0.85034904]
[1738803083818,0.0002245,96820.0,96819.0,0.84934904]
[1738803084042,0.09211968,96830.0,96829.0,0.431912]
[1738803084250,0.09211968,96830.0,96829.0,0.80498321]
[1738803084681,0.0002245,96845.0,96844.0,0.177888]
[1738803084896,0.00036452,96845.0,96844.0,0.17892043]
[1738803085310,0.00036452,96845.0,96844.0,0.177888]
[1738803085728,0.10286817,96845.0,96844.0,0.154888]
[1738803086780,0.10286817,96845.0,96844.0,0.16544285]
[1738803087229,0.10286817,96845.0,96844.0,0.16644285]
[1738803087622,0.10286817,96845.0,96844.0,0.16544285]
[1738803088109,0.10286817,96845.0,96844.0,0.16644285]
[1738803089779,0.10286817,96845.0,96844.0,0.001]
[1738803089988,0.25775417,96845.0,96844.0,0.001]
[1738803090190,0.26201021,96845.0,96844.0,0.001]
[1738803090812,0.154891,96843.0,96835.0,0.154902]
[1738803090968,0.10250365,96842.0,96835.0,0.154902]
[1738803091180,0.10675693,96842.0,96836.0,0.1549]
[1738803091607,0.10675693,96842.0,96835.0,0.154902]
[1738803091796,0.10675693,96842.0,96836.0,0.1549]
[1738803092606,0.11575693,96842.0,96836.0,0.1559]
[1738803092805,0.25740165,96838.0,96836.0,0.001]
[1738803093037,0.18400365,96837.0,96836.0,0.001]
[1738803093205,0.18825516,96837.0,96836.0,0.001]
[1738803093787,0.567969,96836.0,96819.0,0.154927]
[1738803094003,0.10250365,96829.0,96819.0,0.154927]
[1738803094252,0.154914,96828.0,96821.0,0.154924]
[1738803094420,0.154927,96820.0,96812.0,0.154938]
[1738803094637,0.10250365,96819.0,96802.0,0.01057396]
[1738803094929,0.154935,96815.0,96794.0,0.206624]
[1738803095135,0.10673038,96814.0,96794.0,0.206624]
[1738803095347,0.10673038,96814.0,96795.0,0.023]
[1738803095565,0.10673038,96814.0,96808.0,0.154945]
[1738803095769,0.10673038,96814.0,96793.0,0.0482]
[1738803095967,0.10673038,96814.0,96802.0,0.206606]
[1738803096126,0.10673038,96814.0,96807.0,0.154946]
[1738803096671,0.10673038,96814.0,96804.0,0.206601]
[1738803096965,0.10673038,96814.0,96795.0,0.023]
[1738803097178,0.10673038,96814.0,96808.0,0.154944]
[1738803097513,0.11573038,96814.0,96808.0,0.154944]
[1738803097740,0.10673038,96814.0,96808.0,0.154944]
[1738803098252,0.11573038,96814.0,96804.0,0.206601]
[1738803098591,0.00828,96813.0,96808.0,0.154945]
[1738803098793,0.10250365,96812.0,96808.0,0.154945]
[1738803098921,0.1067041,96812.0,96808.0,0.154945]
[1738803099117,0.1067041,96812.0,96805.0,0.2066]
[1738803099567,0.1067041,96812.0,96807.0,0.154946]
[1738803100857,0.1157041,96812.0,96807.0,0.154946]
[1738803101822,0.1157041,96812.0,96769.0,0.09291659]
[1738803101993,0.154952,96804.0,96796.0,0.154963]
[1738803102206,0.25745765,96803.0,96796.0,0.154964]
[1738803102423,0.26165783,96803.0,96795.0,0.154965]
[1738803102635,0.26165783,96803.0,96796.0,0.154964]
[1738803102818,0.26165783,96803.0,96796.0,0.15510364]
[1738803103011,0.10670383,96803.0,96796.0,0.00013964]
[1738803103217,0.10670383,96803.0,96799.0,0.154959]
[1738803103839,0.10670383,96803.0,96798.0,0.154961]
[1738803104047,0.10870383,96803.0,96800.0,0.154958]
[1738803104273,0.10870383,96803.0,96801.0,0.154956]
[1738803104485,0.10670383,96803.0,96802.0,0.03617116]
[1738803104688,0.11378365,96803.0,96801.0,0.154956]
[1738803104908,0.00419799,96802.0,96801.0,0.154956]
[1738803105062,0.10670164,96802.0,96801.0,0.154956]
[1738803105678,0.10670164,96802.0,96799.0,0.154958]
[1738803105910,0.10250365,96801.0,96800.0,0.154957]
[1738803106160,0.10670274,96801.0,96800.0,0.154957]
[1738803107076,0.10250365,96801.0,96800.0,0.154957]
[1738803107662,0.10450365,96801.0,96796.0,0.00013964]
[1738803107878,0.10450365,96801.0,96800.0,0.0001068]
[1738803108106,0.10450365,96801.0,96800.0,0.1550648]
[1738803109470,0.11278365,96801.0,96800.0,0.1550648]
[1738803109698,0.11078365,96801.0,96800.0,0.1550648]
[1738803110548,0.11278365,96801.0,96800.0,0.1550648]
[1738803113058,0.10450365,96801.0,96800.0,0.1550648]
[1738803113253,0.11278365,96801.0,96800.0,0.0001068]
[1738803113482,0.11697752,96801.0,96800.0,0.0001068]
[1738803113722,0.11697752,96801.0,96800.0,0.1550648]
[1738803114144,0.11278365,96801.0,96800.0,0.1550648]
[1738803114350,0.11078365,96801.0,96800.0,0.1550648]
[1738803114873,0.11478365,96801.0,96800.0,0.22016884]
[1738803115053,0.11078365,96801.0,96800.0,0.1780648]
[1738803116411,0.11278365,96801.0,96800.0,0.23828681]
[1738803116590,0.11078365,96801.0,96800.0,0.23828681]
[1738803119341,0.11078365,96801.0,96800.0,0.21528681]
[1738803119576,0.11078365,96801.0,96800.0,0.1550648]
[1738803120901,0.11378365,96801.0,96800.0,0.1550648]
[1738803121432,0.10550365,96801.0,96800.0,0.1550648]
[1738803121583,0.10550365,96801.0,96800.0,0.22455818]
[1738803121584,0.11378365,96801.0,96800.0,0.22455818]
[1738803121768,0.11378365,96801.0,96800.0,0.1780648]
[1738803123705,0.11078365,96801.0,96800.0,0.1780648]
[1738803135104,0.11078365,96801.0,96800.0,0.0001068]
[1738803135303,0.26574065,96801.0,96800.0,0.0001068]
[1738803135507,0.2699453,96801.0,96800.0,0.0001068]
[1738803136574,0.206614,96799.0,96781.0,0.206651]
[1738803136856,0.1149883,96801.0,96784.0,0.154983]
[1738803136857,0.154972,96792.0,96784.0,0.154983]
[1738803137085,0.10250365,96791.0,96785.0,0.154982]
[1738803137318,0.10670276,96791.0,96786.0,0.154979]
[1738803138085,0.10770276,96791.0,96787.0,0.154978]
[1738803138332,0.10770276,96791.0,96781.0,4.655e-05]
[1738803138468,0.10670276,96791.0,96790.0,0.154974]
[1738803138677,0.10770276,96791.0,96790.0,0.154974]
[1738803139304,0.10770276,96791.0,96788.0,0.206635]
[1738803139783,0.10770276,96791.0,96781.0,0.20669655]
[1738803140015,0.10670276,96791.0,96788.0,0.154976]
[1738803140317,0.10770276,96791.0,96788.0,0.154976]
[1738803140534,0.10670276,96791.0,96788.0,0.154976]
[1738803140767,0.10870276,96791.0,96788.0,0.154976]
[1738803141410,0.10870276,96791.0,96781.0,4.655e-05]
[1738803141640,0.10870276,96791.0,96790.0,0.154974]
[1738803141882,0.10450365,96791.0,96790.0,0.154974]
[1738803142106,0.11278365,96791.0,96790.0,0.154974]
[1738803143129,0.11078365,96791.0,96790.0,0.154974]
[1738803143563,0.11278365,96791.0,96790.0,0.154974]
[1738803144195,0.11078365,96791.0,96790.0,0.154974]
[1738803144736,0.11278365,96791.0,96790.0,0.154974]
[1738803144969,0.11078365,96791.0,96790.0,0.154974]
[1738803145201,0.11078365,96791.0,96790.0,0.201374]
[1738803145202,0.11178365,96791.0,96790.0,0.201374]
[1738803146321,0.00022428,96801.0,96800.0,0.154958]
[1738803146573,0.11100793,96801.0,96800.0,0.235658]
[1738803148206,0.11300793,96801.0,96800.0,0.258658]
[1738803148467,0.00222428,96801.0,96800.0,0.258658]
[1738803148961,0.00222428,96801.0,96800.0,0.305058]
[1738803149174,0.00222428,96801.0,96800.0,0.31856994]
[1738803149292,0.00022428,96801.0,96800.0,0.31856994]
[1738803149524,0.00022428,96801.0,96800.0,0.305058]
[1738803149739,0.00222428,96801.0,96800.0,0.305058]
[1738803149984,0.00222428,96801.0,96800.0,0.455058]
[1738803150506,0.00022428,96801.0,96800.0,0.455058]
[1738803150974,0.00022428,96801.0,96800.0,0.31529216]
[1738803151209,0.10272793,96801.0,96800.0,0.16519216]
[1738803153112,0.10694459,96801.0,96800.0,0.18623825]
[1738803154059,0.00444094,96801.0,96800.0,0.03128025]
[1738803154286,0.10694459,96801.0,96787.0,0.206638]
[1738803154483,0.10250365,96800.0,96798.0,0.15496]
[1738803154861,0.00421789,96799.0,96798.0,0.15496]
[1738803155016,0.10672154,96799.0,96798.0,0.15496]
[1738803155679,0.10671591,96799.0,96798.0,0.15496]
[1738803156468,0.10250365,96799.0,96798.0,0.15496]
[1738803156932,0.10671506,96799.0,96798.0,0.15518428]
[1738803157144,0.11495506,96799.0,96798.0,0.23688428]